[Event "Live Chess"]
[Site "Chess.com"]
[Date "2024.06.01"]
[Round "-"]
[White "Ferrarifan27"]
[Black "ggosyaa"]
[Result "1-0"]
[WhiteElo "2070"]
[BlackElo "596"]
[TimeControl "300"]
[EndTime "9:41:35 PDT"]
[Termination "Ferrarifan27 won by checkmate"]

1. e4 {[%clk 0:04:55.6]} 1... c6 {[%clk 0:04:58.3]} 2. d4 {[%clk 0:04:54.3]}
2... d5 {[%clk 0:04:56.8]} 3. e5 {[%clk 0:04:53.9]} 3... Bf5 {[%clk 0:04:52.1]}
4. h4 {[%clk 0:04:52.2]} 4... f6 {[%clk 0:04:51.1]} 5. Nf3 {[%clk 0:04:50.5]}
5... e6 {[%clk 0:04:44.9]} 6. exf6 {[%clk 0:04:48.1]} 6... Nxf6 {[%clk
0:04:43.7]} 7. Bg5 {[%clk 0:04:43.6]} 7... Be7 {[%clk 0:04:35.4]} 8. Bd3 {[%clk
0:04:42.2]} 8... h6 {[%clk 0:04:24.8]} 9. Bf4 {[%clk 0:04:38.1]} 9... Nbd7
{[%clk 0:04:20.6]} 10. Bxf5 {[%clk 0:04:35.2]} 10... exf5 {[%clk 0:04:17.1]} 11.
O-O {[%clk 0:04:34.8]} 11... Ng4 {[%clk 0:04:11.9]} 12. Nc3 {[%clk 0:04:28.5]}
12... Bxh4 {[%clk 0:04:09.9]} 13. Nxh4 {[%clk 0:04:27.1]} 13... Qxh4 {[%clk
0:04:07.9]} 14. Bg3 {[%clk 0:04:25]} 14... Qg5 {[%clk 0:03:54]} 15. Re1+ {[%clk
0:04:23.2]} 15... Kd8 {[%clk 0:03:49.9]} 16. Qf3 {[%clk 0:04:13.2]} 16... Ndf6
{[%clk 0:03:39]} 17. Bf4 {[%clk 0:04:02.5]} 17... Qh5 {[%clk 0:03:28.2]} 18. Re6
{[%clk 0:03:52.3]} 18... Re8 {[%clk 0:03:21.2]} 19. Rxe8+ {[%clk 0:03:49.6]}
19... Kxe8 {[%clk 0:03:20.3]} 20. Re1+ {[%clk 0:03:48.7]} 20... Kf7 {[%clk
0:03:19.1]} 21. Na4 {[%clk 0:03:34.2]} 21... b5 {[%clk 0:03:14.3]} 22. Nc5
{[%clk 0:03:33]} 22... Ne4 {[%clk 0:03:10.7]} 23. Nxe4 {[%clk 0:03:30.9]} 23...
dxe4 {[%clk 0:03:10.1]} 24. Qb3+ {[%clk 0:03:29.1]} 24... Kg6 {[%clk 0:03:08]}
25. Qe6+ {[%clk 0:03:26.2]} 25... Nf6 {[%clk 0:03:04.6]} 26. Qxc6 {[%clk
0:03:22.5]} 26... Qg4 {[%clk 0:02:58.5]} 27. g3 {[%clk 0:03:10.5]} 27... Re8
{[%clk 0:02:55.5]} 28. Qxb5 {[%clk 0:03:06.6]} 28... Nh5 {[%clk 0:02:49.1]} 29.
Qxe8+ {[%clk 0:03:05]} 29... Kf6 {[%clk 0:02:47.3]} 30. Be5+ {[%clk 0:02:54.9]}
30... Kg5 {[%clk 0:02:45.9]} 31. f4+ {[%clk 0:02:51.8]} 31... Nxf4 {[%clk
0:02:43.6]} 32. Bxf4+ {[%clk 0:02:50.6]} 32... Kf6 {[%clk 0:02:41.6]} 33. Be5+
{[%clk 0:02:43.8]} 33... Kg5 {[%clk 0:02:40.4]} 34. Rf1 {[%clk 0:02:30.9]} 34...
Qe2 {[%clk 0:02:25.7]} 35. Qe7+ {[%clk 0:02:28]} 35... Kg4 {[%clk 0:02:24.5]}
36. Qxg7+ {[%clk 0:02:25.8]} 36... Kh3 {[%clk 0:02:22.8]} 37. Qxh6+ {[%clk
0:02:24.7]} 37... Kg4 {[%clk 0:02:20.8]} 38. Qh4# {[%clk 0:02:23.9]} 1-0

[Event "Live Chess"]
[Site "Chess.com"]
[Date "2024.06.01"]
[Round "-"]
[White "Isambard_Thomas"]
[Black "TigerTank70"]
[Result "1-0"]
[WhiteElo "2115"]
[BlackElo "2177"]
[TimeControl "300"]
[EndTime "9:42:09 PDT"]
[Termination "Isambard_Thomas won by resignation"]

1. d4 {[%clk 0:04:58.5]} 1... d5 {[%clk 0:04:58.8]} 2. Bg5 {[%clk 0:04:55.9]}
2... h6 {[%clk 0:04:57.3]} 3. Bf4 {[%clk 0:04:54.7]} 3... h5 {[%clk 0:04:54.4]}
4. e3 {[%clk 0:04:52.8]} 4... e5 {[%clk 0:04:52.5]} 5. dxe5 {[%clk 0:04:51.5]}
5... g5 {[%clk 0:04:51]} 6. Bxg5 {[%clk 0:04:33.9]} 6... Qxg5 {[%clk 0:04:49.3]}
7. Qxd5 {[%clk 0:04:33.5]} 7... Nf6 {[%clk 0:04:33.1]} 8. Qb5+ {[%clk
0:03:58.2]} 8... c6 {[%clk 0:04:22.7]} 9. Nf3 {[%clk 0:03:56.5]} 9... Qg6 {[%clk
0:03:34.1]} 10. Qb3 {[%clk 0:03:47.4]} 10... Nd5 {[%clk 0:03:29.5]} 11. Nc3
{[%clk 0:03:37.8]} 11... Bb4 {[%clk 0:03:27.6]} 12. Nd2 {[%clk 0:03:27.2]} 12...
Bxc3 {[%clk 0:03:18.4]} 13. bxc3 {[%clk 0:03:24.5]} 13... Nd7 {[%clk 0:03:17.6]}
14. c4 {[%clk 0:03:17.4]} 14... N5b6 {[%clk 0:03:07.9]} 15. Nf3 {[%clk
0:03:14.8]} 15... Nc5 {[%clk 0:03:01.2]} 16. Qb4 {[%clk 0:03:00]} 16... Nba4
{[%clk 0:02:51.3]} 17. O-O-O {[%clk 0:02:51.8]} 17... O-O {[%clk 0:02:48]} 18.
Bd3 {[%clk 0:02:43.8]} 18... Nxd3+ {[%clk 0:02:36.8]} 19. Rxd3 {[%clk
0:02:41.8]} 19... Nb6 {[%clk 0:02:30.2]} 20. c5 {[%clk 0:02:40.1]} 20... Nd5
{[%clk 0:02:28.5]} 21. Qd2 {[%clk 0:02:35.9]} 21... Bf5 {[%clk 0:02:23.6]} 22.
Rd4 {[%clk 0:02:22.6]} 22... b6 {[%clk 0:02:13.9]} 23. Nh4 {[%clk 0:02:12.9]}
23... Qe6 {[%clk 0:02:10.3]} 24. e4 {[%clk 0:01:51]} 24... bxc5 {[%clk
0:01:51.2]} 25. exd5 {[%clk 0:01:37.7]} 25... Qxe5 {[%clk 0:01:49.9]} 26. Qg5+
{[%clk 0:01:29.7]} 26... Kh8 {[%clk 0:01:38.5]} 27. Qxh5+ {[%clk 0:01:15.7]}
27... Kg8 {[%clk 0:01:37.3]} 28. Nxf5 {[%clk 0:01:14.9]} 28... cxd4 {[%clk
0:01:28.4]} 29. Nh6+ {[%clk 0:01:08.6]} 1-0

[Event "Live Chess"]
[Site "Chess.com"]
[Date "2024.06.01"]
[Round "-"]
[White "TC2304"]
[Black "EdenHazard8"]
[Result "1-0"]
[WhiteElo "2343"]
[BlackElo "2173"]
[TimeControl "300"]
[EndTime "9:42:11 PDT"]
[Termination "TC2304 won by resignation"]

1. e4 {[%clk 0:04:54.5]} 1... e5 {[%clk 0:04:58.9]} 2. Nf3 {[%clk 0:04:53.5]}
2... Nc6 {[%clk 0:04:57.9]} 3. Bc4 {[%clk 0:04:52.9]} 3... Nf6 {[%clk
0:04:56.7]} 4. d3 {[%clk 0:04:49.5]} 4... Bc5 {[%clk 0:04:55.2]} 5. O-O {[%clk
0:04:45.8]} 5... d6 {[%clk 0:04:53.9]} 6. c3 {[%clk 0:04:45.1]} 6... O-O {[%clk
0:04:51.5]} 7. h3 {[%clk 0:04:43.9]} 7... a6 {[%clk 0:04:50.3]} 8. Bb3 {[%clk
0:04:33.5]} 8... h6 {[%clk 0:04:48.4]} 9. Re1 {[%clk 0:04:32.9]} 9... Ba7 {[%clk
0:04:44]} 10. Nbd2 {[%clk 0:04:32.3]} 10... Be6 {[%clk 0:04:40.6]} 11. Nf1
{[%clk 0:04:31.9]} 11... Qd7 {[%clk 0:04:39]} 12. Ng3 {[%clk 0:04:29.5]} 12...
Bxh3 {[%clk 0:04:36]} 13. gxh3 {[%clk 0:04:28.6]} 13... Qxh3 {[%clk 0:04:35.5]}
14. Be3 {[%clk 0:04:23.6]} 14... Bxe3 {[%clk 0:04:33]} 15. Rxe3 {[%clk
0:04:23.5]} 15... Ng4 {[%clk 0:04:32.2]} 16. Re2 {[%clk 0:04:17.7]} 16... h5
{[%clk 0:04:21.4]} 17. Qf1 {[%clk 0:04:16.8]} 17... Qxf1+ {[%clk 0:04:17]} 18.
Rxf1 {[%clk 0:04:09.2]} 18... g6 {[%clk 0:04:15.2]} 19. Nh2 {[%clk 0:04:04.7]}
19... Nf6 {[%clk 0:04:11.1]} 20. f4 {[%clk 0:04:04.2]} 20... Kg7 {[%clk
0:04:08.9]} 21. f5 {[%clk 0:04:02.9]} 21... h4 {[%clk 0:04:02.7]} 22. Nh1 {[%clk
0:03:58.6]} 22... g5 {[%clk 0:04:00.9]} 23. Nf2 {[%clk 0:03:57.2]} 23... Nh5
{[%clk 0:03:57]} 24. f6+ {[%clk 0:03:53.1]} 24... Kxf6 {[%clk 0:03:53.1]} 25.
Nfg4+ {[%clk 0:03:20]} 25... Kg7 {[%clk 0:03:50.3]} 26. Ne3 {[%clk 0:03:07.5]}
26... Ne7 {[%clk 0:03:42.9]} 27. Nf5+ {[%clk 0:02:51.1]} 27... Nxf5 {[%clk
0:03:41.5]} 28. Rxf5 {[%clk 0:02:49.2]} 28... Ng3 {[%clk 0:03:35.6]} 29. Rxg5+
{[%clk 0:02:45.9]} 29... Kh6 {[%clk 0:03:34]} 30. Rxg3 {[%clk 0:02:42.9]} 30...
hxg3 {[%clk 0:03:32.8]} 31. Nf3 {[%clk 0:02:34.2]} 31... f5 {[%clk 0:03:29.3]}
32. exf5 {[%clk 0:02:29]} 32... Rxf5 {[%clk 0:03:29.2]} 33. Kg2 {[%clk
0:02:23.3]} 33... Kh5 {[%clk 0:03:15.5]} 34. Re1 {[%clk 0:02:17.6]} 34... Raf8
{[%clk 0:03:06.4]} 35. Rh1+ {[%clk 0:02:15.1]} 35... Kg6 {[%clk 0:03:04.8]} 36.
Bd5 {[%clk 0:02:12.2]} 36... Rf4 {[%clk 0:02:57.1]} 37. Be4+ {[%clk 0:02:08.5]}
37... Kg7 {[%clk 0:02:54.6]} 38. Rh7+ {[%clk 0:02:07.8]} 38... Kg8 {[%clk
0:02:53.6]} 39. Rxc7 {[%clk 0:02:06.9]} 1-0

[Event "Live Chess"]
[Site "Chess.com"]
[Date "2024.06.01"]
[Round "-"]
[White "Inglaterra"]
[Black "edward33_24h"]
[Result "1-0"]
[WhiteElo "2037"]
[BlackElo "624"]
[TimeControl "300"]
[EndTime "9:42:13 PDT"]
[Termination "Inglaterra won by checkmate"]

1. c4 {[%clk 0:04:57.8]} 1... Nf6 {[%clk 0:04:55.2]} 2. Nf3 {[%clk 0:04:49.5]}
2... e6 {[%clk 0:04:52.5]} 3. Nc3 {[%clk 0:04:47.8]} 3... c6 {[%clk 0:04:50.2]}
4. d4 {[%clk 0:04:44.4]} 4... d5 {[%clk 0:04:48.3]} 5. e3 {[%clk 0:04:41.8]}
5... Bb4 {[%clk 0:04:41.7]} 6. Be2 {[%clk 0:04:37.7]} 6... Bxc3+ {[%clk
0:04:35.7]} 7. bxc3 {[%clk 0:04:36.3]} 7... Ne4 {[%clk 0:04:31]} 8. Qc2 {[%clk
0:04:32.4]} 8... Qa5 {[%clk 0:04:23]} 9. Bd2 {[%clk 0:04:21.1]} 9... Nxd2 {[%clk
0:04:14.8]} 10. Nxd2 {[%clk 0:04:19]} 10... Nd7 {[%clk 0:04:07]} 11. O-O {[%clk
0:04:17.2]} 11... Nf6 {[%clk 0:04:03.5]} 12. f3 {[%clk 0:04:07.4]} 12... O-O
{[%clk 0:03:47.7]} 13. e4 {[%clk 0:04:04.4]} 13... dxe4 {[%clk 0:03:39.1]} 14.
fxe4 {[%clk 0:04:04.3]} 14... Qg5 {[%clk 0:03:20.3]} 15. e5 {[%clk 0:03:53.6]}
15... Ng4 {[%clk 0:03:09]} 16. Rf3 {[%clk 0:03:21.9]} 16... Nxh2 {[%clk
0:02:14.3]} 17. Kxh2 {[%clk 0:03:18.3]} 17... Qh4+ {[%clk 0:02:04.2]} 18. Kg1
{[%clk 0:03:07.6]} 18... f6 {[%clk 0:01:27]} 19. Rh3 {[%clk 0:02:57.3]} 19...
Qf4 {[%clk 0:00:49.1]} 20. Qxh7+ {[%clk 0:02:55]} 20... Kf7 {[%clk 0:00:43.1]}
21. Bh5+ {[%clk 0:02:54.9]} 21... Ke7 {[%clk 0:00:35.9]} 22. Qxg7+ {[%clk
0:02:54.8]} 22... Rf7 {[%clk 0:00:30.1]} 23. Qxf7+ {[%clk 0:02:52.3]} 23... Kd8
{[%clk 0:00:22.8]} 24. Qf8+ {[%clk 0:02:48.3]} 24... Kd7 {[%clk 0:00:16]} 25.
Qd6# {[%clk 0:02:48.2]} 1-0

[Event "Live Chess"]
[Site "Chess.com"]
[Date "2024.06.01"]
[Round "-"]
[White "JP56789"]
[Black "nitrofish07"]
[Result "0-1"]
[WhiteElo "2252"]
[BlackElo "2143"]
[TimeControl "300"]
[EndTime "9:42:14 PDT"]
[Termination "nitrofish07 won by resignation"]

1. e4 {[%clk 0:04:59.1]} 1... c5 {[%clk 0:04:58.7]} 2. Nf3 {[%clk 0:04:58.5]}
2... d6 {[%clk 0:04:57.8]} 3. Bb5+ {[%clk 0:04:58.2]} 3... Bd7 {[%clk
0:04:56.8]} 4. Bxd7+ {[%clk 0:04:57.6]} 4... Nxd7 {[%clk 0:04:56.7]} 5. O-O
{[%clk 0:04:57.1]} 5... g6 {[%clk 0:04:56]} 6. Re1 {[%clk 0:04:57]} 6... Bg7
{[%clk 0:04:55.2]} 7. c3 {[%clk 0:04:56.9]} 7... Ngf6 {[%clk 0:04:24]} 8. d4
{[%clk 0:04:56.8]} 8... O-O {[%clk 0:04:23.3]} 9. h3 {[%clk 0:04:54.7]} 9... e5
{[%clk 0:04:16.3]} 10. Bg5 {[%clk 0:04:47.8]} 10... h6 {[%clk 0:04:13.1]} 11.
Bh4 {[%clk 0:04:47.1]} 11... g5 {[%clk 0:04:04.7]} 12. Bg3 {[%clk 0:04:45.6]}
12... Nh5 {[%clk 0:03:57]} 13. Bh2 {[%clk 0:04:43]} 13... Nf4 {[%clk 0:03:54.9]}
14. dxe5 {[%clk 0:04:37.6]} 14... dxe5 {[%clk 0:03:39.9]} 15. Na3 {[%clk
0:04:34.7]} 15... a6 {[%clk 0:03:38.5]} 16. Nc4 {[%clk 0:04:33.6]} 16... b5
{[%clk 0:03:30.2]} 17. Ne3 {[%clk 0:04:32.5]} 17... c4 {[%clk 0:03:16.6]} 18.
Nf5 {[%clk 0:04:28.5]} 18... Nc5 {[%clk 0:03:10.6]} 19. Nxg7 {[%clk 0:04:23.5]}
19... Kxg7 {[%clk 0:03:07.6]} 20. Nxe5 {[%clk 0:04:22.6]} 20... Qxd1 {[%clk
0:02:47]} 21. Raxd1 {[%clk 0:04:21.3]} 21... Rfe8 {[%clk 0:02:46.9]} 22. Bxf4
{[%clk 0:04:05.3]} 22... gxf4 {[%clk 0:02:46.8]} 23. Rd5 {[%clk 0:04:02.3]}
23... Rxe5 {[%clk 0:02:42.1]} 0-1

[Event "Live Chess"]
[Site "Chess.com"]
[Date "2024.06.01"]
[Round "-"]
[White "Harry_Li"]
[Black "DJ_Lambton"]
[Result "1-0"]
[WhiteElo "2181"]
[BlackElo "1745"]
[TimeControl "300"]
[EndTime "9:42:16 PDT"]
[Termination "Harry_Li won by resignation"]

1. e4 {[%clk 0:04:58.5]} 1... c6 {[%clk 0:04:59.5]} 2. d4 {[%clk 0:04:57.6]}
2... d5 {[%clk 0:04:59.2]} 3. e5 {[%clk 0:04:57.1]} 3... Bf5 {[%clk 0:04:58.2]}
4. Nf3 {[%clk 0:04:56.6]} 4... e6 {[%clk 0:04:57.3]} 5. Be2 {[%clk 0:04:56.3]}
5... c5 {[%clk 0:04:56.5]} 6. c3 {[%clk 0:04:55.1]} 6... Nc6 {[%clk 0:04:55.8]}
7. O-O {[%clk 0:04:54.4]} 7... Nge7 {[%clk 0:04:54.7]} 8. dxc5 {[%clk 0:04:23]}
8... Nc8 {[%clk 0:04:53.6]} 9. b4 {[%clk 0:04:20.2]} 9... a5 {[%clk 0:04:52.5]}
10. Nd4 {[%clk 0:03:43.1]} 10... axb4 {[%clk 0:04:50.6]} 11. cxb4 {[%clk
0:03:33]} 11... Nxb4 {[%clk 0:04:43.1]} 12. Bb5+ {[%clk 0:03:31.8]} 12... Nc6
{[%clk 0:04:42.3]} 13. Nxc6 {[%clk 0:03:29.2]} 13... bxc6 {[%clk 0:04:41.6]} 14.
Bxc6+ {[%clk 0:03:28.5]} 1-0

[Event "Live Chess"]
[Site "Chess.com"]
[Date "2024.06.01"]
[Round "-"]
[White "nigelst"]
[Black "Eva3337"]
[Result "0-1"]
[WhiteElo "1729"]
[BlackElo "1143"]
[TimeControl "300"]
[EndTime "9:42:25 PDT"]
[Termination "Eva3337 won on time"]

1. e4 {[%clk 0:04:57.4]} 1... d5 {[%clk 0:04:57.4]} 2. exd5 {[%clk 0:04:55.5]}
2... Qxd5 {[%clk 0:04:56.3]} 3. Nc3 {[%clk 0:04:54.3]} 3... Qd8 {[%clk
0:04:54.3]} 4. d4 {[%clk 0:04:53.6]} 4... Nf6 {[%clk 0:04:50]} 5. Nf3 {[%clk
0:04:52.8]} 5... Bg4 {[%clk 0:04:47]} 6. h3 {[%clk 0:04:46.5]} 6... Bh5 {[%clk
0:04:45.2]} 7. g4 {[%clk 0:04:45.2]} 7... Bg6 {[%clk 0:04:43.6]} 8. Ne5 {[%clk
0:04:43.4]} 8... e6 {[%clk 0:04:37.1]} 9. h4 {[%clk 0:04:42.2]} 9... h6 {[%clk
0:04:34.4]} 10. h5 {[%clk 0:04:40.8]} 10... Bh7 {[%clk 0:04:32.9]} 11. Be3
{[%clk 0:04:27.2]} 11... Nc6 {[%clk 0:04:27.9]} 12. Bb5 {[%clk 0:04:23.1]} 12...
a6 {[%clk 0:04:25.5]} 13. Bxc6+ {[%clk 0:04:21.6]} 13... bxc6 {[%clk 0:04:24]}
14. Nxc6 {[%clk 0:04:19.8]} 14... Qd5 {[%clk 0:04:22]} 15. O-O {[%clk
0:04:00.9]} 15... Qxc6 {[%clk 0:04:17.2]} 16. f4 {[%clk 0:03:40.5]} 16... Bb4
{[%clk 0:04:12.6]} 17. d5 {[%clk 0:03:21.8]} 17... exd5 {[%clk 0:04:07.2]} 18.
g5 {[%clk 0:03:13.7]} 18... Ne4 {[%clk 0:04:00]} 19. Nxe4 {[%clk 0:03:07.5]}
19... dxe4 {[%clk 0:03:55.9]} 20. Qd4 {[%clk 0:02:56.4]} 20... Ba5 {[%clk
0:03:42.9]} 21. Qxg7 {[%clk 0:02:44]} 21... O-O-O {[%clk 0:03:35.7]} 22. Qxf7
{[%clk 0:02:22.8]} 22... Bb6 {[%clk 0:03:30.9]} 23. Qb3 {[%clk 0:02:07.9]} 23...
Bxe3+ {[%clk 0:03:20.7]} 24. Qxe3 {[%clk 0:02:05.7]} 24... Rhg8 {[%clk
0:03:04.8]} 25. g6 {[%clk 0:02:04.4]} 25... Bxg6 {[%clk 0:02:58.8]} 26. hxg6
{[%clk 0:01:58.2]} 26... Qxg6+ {[%clk 0:02:57.2]} 27. Kf2 {[%clk 0:01:52.4]}
27... Qg2+ {[%clk 0:02:52.1]} 28. Ke1 {[%clk 0:01:48.7]} 28... Qxc2 {[%clk
0:02:43.5]} 29. Rc1 {[%clk 0:01:38.5]} 29... Qxb2 {[%clk 0:02:26.3]} 30. Qc5
{[%clk 0:01:01.8]} 30... Rd7 {[%clk 0:02:17.2]} 31. Rc2 {[%clk 0:00:30.8]} 31...
Qb1+ {[%clk 0:02:04.7]} 32. Kf2 {[%clk 0:00:16.6]} 32... Qb7 {[%clk 0:01:37.1]}
33. Qc4 {[%clk 0:00:14.3]} 33... Qb6+ {[%clk 0:01:27.8]} 34. Ke1 {[%clk
0:00:12.9]} 34... Qe3+ {[%clk 0:01:24]} 35. Re2 {[%clk 0:00:12.1]} 35... Qg3+
{[%clk 0:01:18.8]} 36. Ref2 {[%clk 0:00:10.6]} 36... Qe3+ {[%clk 0:01:04.5]} 37.
Re2 {[%clk 0:00:09.4]} 37... Qb6 {[%clk 0:00:40.2]} 38. Qxg8+ {[%clk 0:00:02.2]}
38... Kb7 {[%clk 0:00:38.2]} 39. Qc4 {[%clk 0:00:01.8]} 39... Qc6 {[%clk
0:00:35.6]} 40. Qxe4 {[%clk 0:00:01.5]} 40... Qxe4 {[%clk 0:00:31.1]} 41. Rxe4
{[%clk 0:00:00.5]} 41... c6 {[%clk 0:00:29.4]} 42. Rb4+ {[%clk 0:00:00.4]} 42...
Kc7 {[%clk 0:00:28.5]} 43. Rg1 {[%clk 0:00:00.3]} 43... c5 {[%clk 0:00:24.3]}
44. Rg8 {[%clk 0:00:00.2]} 44... Kc6 {[%clk 0:00:21.7]} 45. Rbb8 {[%clk
0:00:00.1]} 45... Kd6 {[%clk 0:00:20.3]} 0-1

[Event "Live Chess"]
[Site "Chess.com"]
[Date "2024.06.01"]
[Round "-"]
[White "13Alexey"]
[Black "PatientChessPapa"]
[Result "1-0"]
[WhiteElo "749"]
[BlackElo "822"]
[TimeControl "300"]
[EndTime "9:42:29 PDT"]
[Termination "13Alexey won on time"]

1. d4 {[%clk 0:04:59.3]} 1... d5 {[%clk 0:04:58.2]} 2. Bf4 {[%clk 0:04:58.1]}
2... Nf6 {[%clk 0:04:55.8]} 3. Nf3 {[%clk 0:04:57]} 3... e6 {[%clk 0:04:53.2]}
4. e3 {[%clk 0:04:55.9]} 4... Bd6 {[%clk 0:04:51.3]} 5. Bg3 {[%clk 0:04:53.8]}
5... O-O {[%clk 0:04:49.4]} 6. Bd3 {[%clk 0:04:52]} 6... c5 {[%clk 0:04:44.8]}
7. c3 {[%clk 0:04:50.3]} 7... Qc7 {[%clk 0:04:39.5]} 8. Ne5 {[%clk 0:04:47]}
8... Nbd7 {[%clk 0:04:36]} 9. f4 {[%clk 0:04:42.1]} 9... Ne8 {[%clk 0:03:41.5]}
10. Nd2 {[%clk 0:04:37.5]} 10... Ndf6 {[%clk 0:03:39.6]} 11. Qf3 {[%clk
0:04:28.1]} 11... Qb6 {[%clk 0:03:14.7]} 12. O-O-O {[%clk 0:04:23.8]} 12... cxd4
{[%clk 0:02:50.2]} 13. exd4 {[%clk 0:04:22.2]} 13... Qa5 {[%clk 0:02:03.1]} 14.
Kb1 {[%clk 0:04:20.3]} 14... b6 {[%clk 0:01:56.5]} 15. Bh4 {[%clk 0:04:19]}
15... Ba6 {[%clk 0:01:51.9]} 16. Bc2 {[%clk 0:04:08.7]} 16... Rc8 {[%clk
0:01:48.5]} 17. g4 {[%clk 0:04:04.9]} 17... b5 {[%clk 0:00:51.5]} 18. g5 {[%clk
0:04:03.4]} 18... Ne4 {[%clk 0:00:43.3]} 19. Nxe4 {[%clk 0:03:57.6]} 19... dxe4
{[%clk 0:00:42.2]} 20. Qxe4 {[%clk 0:03:56.5]} 20... g6 {[%clk 0:00:37.4]} 21.
Rhg1 {[%clk 0:03:43.7]} 21... b4 {[%clk 0:00:35.3]} 22. cxb4 {[%clk 0:03:41.4]}
22... Qxb4 {[%clk 0:00:22.7]} 23. Nd7 {[%clk 0:03:37]} 23... Rxc2 {[%clk
0:00:03.7]} 24. Qxc2 {[%clk 0:03:32.9]} 1-0

[Event "Live Chess"]
[Site "Chess.com"]
[Date "2024.06.01"]
[Round "-"]
[White "Zhevzh1k7"]
[Black "Trendle"]
[Result "0-1"]
[WhiteElo "1067"]
[BlackElo "2621"]
[TimeControl "300"]
[EndTime "9:42:41 PDT"]
[Termination "Trendle won by resignation"]

1. e4 {[%clk 0:04:58.4]} 1... e5 {[%clk 0:04:58.8]} 2. Nf3 {[%clk 0:04:56.1]}
2... Nf6 {[%clk 0:04:58]} 3. Nc3 {[%clk 0:04:53.9]} 3... Nc6 {[%clk 0:04:56.1]}
4. Bc4 {[%clk 0:04:53.2]} 4... Bb4 {[%clk 0:04:49.2]} 5. d3 {[%clk 0:04:48.8]}
5... d5 {[%clk 0:04:46]} 6. exd5 {[%clk 0:04:47.1]} 6... Nxd5 {[%clk 0:04:45.6]}
7. Bd2 {[%clk 0:04:42]} 7... Be6 {[%clk 0:04:43]} 8. a3 {[%clk 0:04:37.9]} 8...
Nxc3 {[%clk 0:04:37]} 9. Bb3 {[%clk 0:04:33]} 9... Nxd1 {[%clk 0:04:33.8]} 10.
Kxd1 {[%clk 0:04:30.5]} 10... Bxb3 {[%clk 0:04:31]} 11. cxb3 {[%clk 0:04:28.6]}
11... Bxd2 {[%clk 0:04:30]} 12. Kxd2 {[%clk 0:04:28.5]} 12... e4 {[%clk
0:04:29.1]} 13. Ne1 {[%clk 0:04:22.4]} 13... O-O {[%clk 0:04:27.1]} 14. Rd1
{[%clk 0:04:18.2]} 14... Nd4 {[%clk 0:04:25.3]} 15. dxe4 {[%clk 0:04:15.9]}
15... Qg5+ {[%clk 0:04:21.3]} 16. Kc3 {[%clk 0:04:10.8]} 16... Qc5+ {[%clk
0:04:19.6]} 17. Kd3 {[%clk 0:04:08.1]} 17... Rad8 {[%clk 0:04:18.2]} 18. Ke3
{[%clk 0:04:06]} 18... Nxb3+ {[%clk 0:04:13.7]} 19. Kf3 {[%clk 0:04:02.3]} 19...
Rxd1 {[%clk 0:04:11.7]} 0-1

[Event "Live Chess"]
[Site "Chess.com"]
[Date "2024.06.01"]
[Round "-"]
[White "Queensandpawns"]
[Black "f4nomore"]
[Result "1-0"]
[WhiteElo "2469"]
[BlackElo "1196"]
[TimeControl "300"]
[EndTime "9:42:48 PDT"]
[Termination "Queensandpawns won by resignation"]

1. e4 {[%clk 0:04:59.3]} 1... g6 {[%clk 0:04:57.9]} 2. a4 {[%clk 0:04:54.9]}
2... Bg7 {[%clk 0:04:56.3]} 3. Nc3 {[%clk 0:04:54.8]} 3... c6 {[%clk 0:04:54.6]}
4. d4 {[%clk 0:04:54.7]} 4... d6 {[%clk 0:04:53.2]} 5. Nf3 {[%clk 0:04:53.6]}
5... Nd7 {[%clk 0:04:51.2]} 6. a5 {[%clk 0:04:53.5]} 6... Ngf6 {[%clk
0:04:46.7]} 7. Bd3 {[%clk 0:04:53.4]} 7... O-O {[%clk 0:04:44.6]} 8. h3 {[%clk
0:04:53.1]} 8... c5 {[%clk 0:04:41.6]} 9. Be3 {[%clk 0:04:53]} 9... cxd4 {[%clk
0:04:37.3]} 10. Bxd4 {[%clk 0:04:52.9]} 10... b6 {[%clk 0:04:32]} 11. axb6
{[%clk 0:04:51.6]} 11... Nxb6 {[%clk 0:04:28.3]} 12. O-O {[%clk 0:04:50.9]}
12... Bb7 {[%clk 0:04:20.3]} 13. Be3 {[%clk 0:04:47.8]} 13... e6 {[%clk
0:04:13]} 14. Qd2 {[%clk 0:04:43.8]} 14... Qc7 {[%clk 0:04:03.3]} 15. Bh6 {[%clk
0:04:43]} 15... Nc4 {[%clk 0:03:53.7]} 16. Qc1 {[%clk 0:04:42.2]} 16... Nxb2
{[%clk 0:03:43.5]} 17. Bxg7 {[%clk 0:04:40.3]} 17... Nxd3 {[%clk 0:03:41.7]} 18.
cxd3 {[%clk 0:04:37.9]} 18... Kxg7 {[%clk 0:03:39.3]} 19. Qd2 {[%clk 0:04:36.1]}
19... a6 {[%clk 0:03:32.6]} 20. Rac1 {[%clk 0:04:34.2]} 20... Rac8 {[%clk
0:03:22.2]} 21. Nd5 {[%clk 0:04:31]} 21... Qe7 {[%clk 0:03:10.5]} 22. Nxe7
{[%clk 0:04:29.9]} 1-0